[Event "Romanian-ch Youth Open U8 2024"]
[Site "Eforie Nord"]
[Date "2024.04.19"]
[Round "9.1"]
[White "Rosu, Razvan-Mihai"]
[Black "Vasiloi, Leonard"]
[Result "1-0"]
[ECO "A46"]
[WhiteElo "1517"]
[BlackElo "1547"]
[Annotator "NA RC COMBH"]
[PlyCount "167"]
[EventDate "2024.04.10"]
[EventType "swiss"]
[EventCountry "ROU"]
[SourceTitle "playchess.com"]
[Source "ChessBase"]
[SourceQuality "1"]
[TimeControl "5400+30"]

1. d4 {[%emt 0:10:02]} Nf6 {[%emt 0:00:04]} 2. Nf3 {[%emt 0:00:05]} e6 {[%emt 0:00:08]} 3. g3 {[%emt 0:00:05]} b5 {[%emt 0:00:08]} 4. Bg2 {[%emt 0:00:07]} Bb7 {[%emt 0:00:06]} 5. O-O {[%emt 0:00:11]} c5 {[%emt 0:00:07]} 6. Bg5 {[%emt 0:07:51]} Be7 {[%emt 0:00:16]} 7. dxc5 {[%emt 0:01:20]} Bxc5 {[%emt 0:00:21]} 8. Nbd2 {[%emt 0:01:03]} h6 {[%emt 0:00:25]} 9. Bxf6 {[%emt 0:00:26]} Qxf6 {[%emt 0:00:34]} 10. Nb3 {[%emt 0:02:00]} Bb6 {[%emt 0:05:08]} 11. c3 {[%emt 0:02:04]} O-O {[%emt 0:01:08]} 12. Nbd4 {[%emt 0:05:33]} a6 {[%emt 0:01:34]} 13. a4 {[%emt 0:03:57]} bxa4 {[%emt 0:00:38]} 14. Qxa4 {[%emt 0:02:45]} Bc6 {[%emt 0:04:44]} 15. Qb4 {[%emt 0:02:25]} Bc7 {[%emt 0:02:03]} 16. Rfd1 {[%emt 0:05:20]} a5 {[%emt 0:01:01]} 17. Qc5 {[%emt 0:02:26]} Na6 {[%emt 0:00:13]} 18. Qa3 {[%emt 0:02:37]} Rfd8 {[%emt 0:01:41]} 19. Nxc6 {[%emt 0:00:25]} dxc6 {[%emt 0:00:07]} 20. Nd4 {[%emt 0:02:36]} Bd6 {[%emt 0:00:32]} 21. Qa2 {[%emt 0:05:25]} Bc5 {[%emt 0:10:12]} 22. Bxc6 {[%emt 0:02:12]} Bxd4 {[%emt 0:00:17]} 23. Rxd4 {[%emt 0:00:23]} Rxd4 {[%emt 0:00:06]} 24. cxd4 {[%emt 0:00:08]} Nb4 {[%emt 0:00:06]} 25. Qa4 {[%emt 0:05:24]} Nxc6 {[%emt 0:00:19]} 26. Qxc6 {[%emt 0:00:58]} Rd8 {[%emt 0:01:25]} 27. Rxa5 {[%emt 0:02:46]} Qxd4 {[%emt 0:00:08]} 28. Ra8 {[%emt 0:03:09]} Rxa8 {[%emt 0:00:39]} 29. Qxa8+ {[%emt 0:00:03]} Kh7 {[%emt 0:00:11]} 30. Qa1 {[%emt 0:00:25]} e5 {[%emt 0:00:05]} 31. Qb1+ {[%emt 0:00:15]} g6 {[%emt 0:00:05]} 32. b4 {[%emt 0:00:14]} Qb6 {[%emt 0:00:07]} 33. Qb3 {[%emt 0:00:08]} Kg7 {[%emt 0:00:05]} 34. e3 {[%emt 0:00:16]} Qb5 {[%emt 0:00:08]} 35. Qc3 {[%emt 0:01:21]} Kf6 {[%emt 0:05:13]} 36. Kg2 {[%emt 0:02:06]} Qd5+ {[%emt 0:00:19]} 37. Kf1 {[%emt 0:06:41]} Qb5+ {[%emt 0:01:07]} 38. Ke1 {[%emt 0:00:10]} Ke6 {[%emt 0:00:15]} 39. Qb3+ {[%emt 0:00:45]} Ke7 {[%emt 0:00:32]} 40. f4 {[%emt 0:02:41]} exf4 {[%emt 0:01:19]} 41. exf4 {[%emt 0:00:36]} Kd6 {[%emt 0:00:31]} 42. Kf2 {[%emt 0:00:44]} Qb6+ {[%emt 0:00:16]} 43. Kf3 {[%emt 0:00:54]} Qb7+ {[%emt 0:00:22]} 44. Ke3 {[%emt 0:01:00]} Qb6+ {[%emt 0:01:04]} 45. Kd3 {[%emt 0:02:37]} Qb5+ {[%emt 0:00:38]} 46. Qc4 {[%emt 0:18:51]} Qh5 {[%emt 1:07:03]} 47. Qd4+ {[%emt 0:00:00]} Kc6 {[%emt 0:00:00]} 48. Qc4+ {[%emt 0:00:00]} Kb6 {[%emt 0:00:00]} 49. Qd4+ {[%emt 0:00:00]} Kc6 {[%emt 0:00:00]} 50. Qf6+ {[%emt 0:00:00]} Kb5 {[%emt 0:00:00]} 51. Qe5+ {[%emt 0:00:00]} Qxe5 {[%emt 0:00:00]} 52. fxe5 {[%emt 0:00:00]} Kxb4 {[%emt 0:00:00]} 53. Kd4 {[%emt 0:00:00]} Kb5 {[%emt 0:00:00]} 54. Kd5 {[%emt 0:00:00]} g5 {[%emt 0:00:00]} 55. g4 {[%emt 0:00:00]} Kb4 {[%emt 0:00:00]} 56. e6 {[%emt 0:00:00]} fxe6+ {[%emt 0:00:00]} 57. Kxe6 {[%emt 0:00:00]} Kc4 {[%emt 0:00:00]} 58. Kf5 {[%emt 0:00:00]} Kd4 {[%emt 0:00:00]} 59. Kg6 {[%emt 0:00:00]} Ke5 {[%emt 0:00:00]} 60. Kxh6 {[%emt 0:00:00]} Ke6 {[%emt 0:00:00]} 61. Kxg5 {[%emt 0:00:00]} Kf7 {[%emt 0:00:00]} 62. Kh6 {[%emt 0:00:00]} Kg8 {[%emt 0:00:00]} 63. Kg6 {[%emt 0:00:00]} Kh8 {[%emt 0:00:00]} 64. Kf7 {[%emt 0:00:00]} Kh7 {[%emt 0:00:00]} 65. g5 {[%emt 0:00:00]} Kh8 {[%emt 0:00:00]} 66. Kf6 {[%emt 0:00:00]} Kg8 {[%emt 0:00:00]} 67. Kg6 {[%emt 0:00:00]} Kf8 {[%emt 0:00:00]} 68. Kh7 {[%emt 0:00:00]} Ke7 {[%emt 0:00:00]} 69. g6 {[%emt 0:00:00]} Kd6 {[%emt 0:00:00]} 70. g7 {[%emt 0:00:00]} Kd5 {[%emt 0:00:00]} 71. g8=Q+ {[%emt 0:00:00]} Ke5 {[%emt 0:00:00]} 72. Qg4 {[%emt 0:00:00]} Kd5 {[%emt 0:00:00]} 73. Kg6 {[%emt 0:00:00]} Ke5 {[%emt 0:00:00]} 74. Qf5+ {[%emt 0:00:00]} Kd4 {[%emt 0:00:00]} 75. h4 {[%emt 0:00:00]} Ke3 {[%emt 0:00:00]} 76. h5 {[%emt 0:00:00]} Kd4 {[%emt 0:00:00]} 77. h6 {[%emt 0:00:00]} Kc4 {[%emt 0:00:00]} 78. h7 {[%emt 0:00:00]} Kb4 {[%emt 0:00:00]} 79. h8=R {[%emt 0:00:00]} Kc4 {[%emt 0:00:00]} 80. Qd7 {[%emt 0:00:00]} Kb3 {[%emt 0:00:00]} 81. Rb8+ {[%emt 0:00:00]} Kc2 {[%emt 0:00:00]} 82. Rc8+ {[%emt 0:00:00]} Kb1 {[%emt 0:00:00]} 83. Qb7+ {[%emt 0:00:00]} Ka2 {[%emt 0:00:00]} 84. Ra8# {[%emt 0:00:00]} 1-0

[Event "Romanian-ch Youth Open U8 2024"]
[Site "Eforie Nord"]
[Date "2024.04.19"]
[Round "9.2"]
[White "Liga, Matei"]
[Black "Badescu, Matei-Andrei"]
[Result "0-1"]
[ECO "C01"]
[WhiteElo "1504"]
[BlackElo "1635"]
[Annotator "NA RC COMBH"]
[PlyCount "118"]
[EventDate "2024.04.10"]
[EventType "swiss"]
[EventCountry "ROU"]
[SourceTitle "playchess.com"]
[Source "ChessBase"]
[SourceQuality "1"]
[TimeControl "5400+30"]

1. e4 {[%emt 0:10:04]} e6 {[%emt 0:00:05]} 2. d4 {[%emt 0:00:19]} d5 {[%emt 0:00:05]} 3. exd5 {[%emt 0:00:09]} exd5 {[%emt 0:00:09]} 4. Nf3 {[%emt 0:00:34]} Bg4 {[%emt 0:00:15]} 5. Be2 {[%emt 0:00:21]} Nf6 {[%emt 0:00:26]} 6. Bg5 {[%emt 0:01:01]} Be7 {[%emt 0:00:11]} 7. h3 {[%emt 0:00:25]} Bh5 {[%emt 0:00:07]} 8. c3 {[%emt 0:01:28]} O-O {[%emt 0:00:34]} 9. O-O {[%emt 0:00:09]} c6 {[%emt 0:00:12]} 10. Re1 {[%emt 0:01:03]} Nbd7 {[%emt 0:00:21]} 11. Nbd2 {[%emt 0:00:14]} Re8 {[%emt 0:00:33]} 12. Bd3 {[%emt 0:02:05]} Nf8 {[%emt 0:00:56]} 13. Qc2 {[%emt 0:01:00]} Bg6 {[%emt 0:00:20]} 14. Ne5 {[%emt 0:02:18]} Bxd3 {[%emt 0:00:18]} 15. Nxd3 {[%emt 0:00:42]} Ne6 {[%emt 0:00:18]} 16. Bf4 {[%emt 0:01:43]} Nxf4 {[%emt 0:00:53]} 17. Nxf4 {[%emt 0:00:06]} Bd6 {[%emt 0:00:09]} 18. Nd3 {[%emt 0:00:17]} Qd7 {[%emt 0:00:28]} 19. Nf3 {[%emt 0:01:00]} Qf5 {[%emt 0:00:43]} 20. Rac1 {[%emt 0:01:34]} h6 {[%emt 0:00:40]} 21. Nd2 {[%emt 0:05:40]} Kh8 {[%emt 0:02:16]} 22. Nf1 {[%emt 0:05:27]} Ne4 {[%emt 0:00:25]} 23. Ne3 {[%emt 0:02:38]} Qg5 {[%emt 0:01:11]} 24. Ng4 {[%emt 0:01:16]} Kg8 {[%emt 0:01:04]} 25. Nde5 {[%emt 0:03:03]} h5 {[%emt 0:00:27]} 26. Nf3 {[%emt 0:01:42]} Qf4 {[%emt 0:01:31]} 27. Nge5 {[%emt 0:01:16]} g5 {[%emt 0:02:45]} 28. Nd3 {[%emt 0:02:44]} Qf5 {[%emt 0:01:53]} 29. c4 {[%emt 0:09:37]} Kg7 {[%emt 0:01:24]} 30. c5 {[%emt 0:00:36]} Bc7 {[%emt 0:00:35]} 31. Nd2 {[%emt 0:03:20]} Nxf2 {[%emt 0:08:10]} 32. Rxe8 {[%emt 0:00:47]} Rxe8 {[%emt 0:00:30]} 33. Nxf2 {[%emt 0:00:05]} Re1+ {[%emt 1:17:06]} 34. Nf1 {[%emt 0:00:18]} Bh2+ {[%emt 0:00:00]} 35. Kxh2 {[%emt 0:00:18]} Qf4+ {[%emt 0:00:00]} 36. Ng3 {[%emt 0:01:42]} Rxc1 {[%emt 0:00:00]} 37. Qf5 {[%emt 0:02:30]} Qxf5 {[%emt 0:00:00]} 38. Nxf5+ {[%emt 0:00:05]} Kf6 {[%emt 0:00:00]} 39. Ne3 {[%emt 0:00:11]} Re1 {[%emt 0:00:00]} 40. Nfd1 {[%emt 0:00:43]} h4 {[%emt 0:00:00]} 41. g4 {[%emt 0:00:42]} Re2+ {[%emt 0:00:00]} 42. Kg1 {[%emt 0:00:39]} Rd2 {[%emt 0:00:00]} 43. Kf1 {[%emt 0:00:24]} Rxd4 {[%emt 0:00:00]} 44. Ke2 {[%emt 0:00:14]} Rb4 {[%emt 0:00:00]} 45. Kd3 {[%emt 0:00:26]} Ke5 {[%emt 0:00:00]} 46. Nc2 {[%emt 0:00:26]} Rc4 {[%emt 0:00:00]} 47. b4 {[%emt 0:00:33]} Kf4 {[%emt 0:00:00]} 48. Nde3 {[%emt 0:00:24]} Re4 {[%emt 0:00:00]} 49. Ng2+ {[%emt 0:00:21]} Kg3 {[%emt 0:00:00]} 50. Nce3 {[%emt 0:00:14]} Kxh3 {[%emt 0:00:00]} 51. a3 {[%emt 0:00:10]} Kg3 {[%emt 0:00:00]} 52. Ne1 {[%emt 0:00:13]} Kf2 {[%emt 0:00:00]} 53. N1c2 {[%emt 0:00:14]} h3 {[%emt 0:00:00]} 54. a4 {[%emt 0:00:03]} h2 {[%emt 0:00:00]} 55. b5 {[%emt 0:00:06]} h1=Q {[%emt 0:00:00]} 56. b6 {[%emt 0:00:10]} Qc1 {[%emt 0:00:00]} 57. bxa7 {[%emt 0:00:12]} Rxe3+ {[%emt 0:00:00]} 58. Nxe3 {[%emt 0:00:09]} Qxe3+ {[%emt 0:00:00]} 59. Kc2 {[%emt 0:00:04]} Qxc5+ {[%emt 0:00:00]} 0-1

[Event "Romanian-ch Youth Open U8 2024"]
[Site "Eforie Nord"]
[Date "2024.04.19"]
[Round "9.4"]
[White "Grigorescu, Stefan"]
[Black "Mihai, Adam-Alexandru"]
[Result "1-0"]
[ECO "B20"]
[WhiteElo "1546"]
[BlackElo "1533"]
[Annotator "NA RC COMBH"]
[PlyCount "53"]
[EventDate "2024.04.10"]
[EventType "swiss"]
[EventCountry "ROU"]
[SourceTitle "playchess.com"]
[Source "ChessBase"]
[SourceQuality "1"]
[TimeControl "5400+30"]

1. e4 {[%emt 0:00:04]} c5 {[%emt 0:00:05]} 2. b4 {[%emt 0:00:07]} cxb4 {[%emt 0:00:06]} 3. a3 {[%emt 0:00:08]} bxa3 {[%emt 0:00:07]} 4. Nxa3 {[%emt 0:00:08]} e6 {[%emt 0:00:22]} 5. d4 {[%emt 0:00:08]} Bb4+ {[%emt 0:00:26]} 6. Bd2 {[%emt 0:00:26]} Bxd2+ {[%emt 0:00:31]} 7. Qxd2 {[%emt 0:00:25]} Nf6 {[%emt 0:00:15]} 8. Bd3 {[%emt 0:02:00]} b6 {[%emt 0:00:24]} 9. Nf3 {[%emt 0:00:09]} Bb7 {[%emt 0:00:17]} 10. Qe3 {[%emt 0:03:12]} d5 {[%emt 0:00:53]} 11. e5 {[%emt 0:02:05]} Nfd7 {[%emt 0:00:21]} 12. Nb5 {[%emt 0:00:56]} O-O {[%emt 0:00:43]} 13. O-O {[%emt 0:00:17]} Nc6 {[%emt 0:00:19]} 14. Nd6 {[%emt 0:00:19]} Qc7 {[%emt 0:01:07]} 15. Ng5 {[%emt 0:04:26]} h6 {[%emt 0:04:20]} 16. Qh3 {[%emt 0:01:38]} Nxd4 {[%emt 0:02:08]} 17. c3 {[%emt 0:01:44]} Nc6 {[%emt 0:01:40]} 18. Nxe6 {[%emt 0:00:37]} fxe6 {[%emt 0:00:25]} 19. Qxe6+ {[%emt 0:00:16]} Kh8 {[%emt 0:00:08]} 20. Qg6 {[%emt 0:00:19]} Nf6 {[%emt 0:00:27]} 21. exf6 {[%emt 0:00:11]} gxf6 {[%emt 0:00:20]} 22. Qxh6+ {[%emt 0:05:48]} Kg8 {[%emt 0:00:45]} 23. Qg6+ {[%emt 0:00:29]} Kh8 {[%emt 0:00:12]} 24. Ra4 {[%emt 0:00:34]} Qg7 {[%emt 0:00:59]} 25. Qh5+ {[%emt 0:01:06]} Kg8 {[%emt 0:00:13]} 26. Rg4 {[%emt 0:00:24]} Qxg4 {[%emt 0:00:02]} 27. Qh7# {[%emt 0:00:29]} 1-0